Cogmind - Beta 13 @@@ ROGUE MODE // 2024.06.08 @ 18:48:07 Player: Minty Result: Destroyed by Y-45 Defender with Beam Rifle Performance ------------- Evolutions (2) 1000 Regions Visited (4) 800 Robots Destroyed (36) 180 Value Destroyed (811) 811 Prototype IDs (1) 20 Alien Tech Used (0) 0 Bonus (43) 43 TOTAL SCORE: 2854 Bonus ------- High Alert Combat Kills 13 Follower Combat Kills 165 Friendly Fire -135 Cogmind --------- Core Integrity 0/550 Matter 191/300 Energy 97/100 System Corruption 0% Temperature Cool (9) Movement Core (50) Location -8/Materials Parts ------- > --- POWER (1) -------- (None) > --- PROPULSION (2) --- Improved Hover Unit > --- UTILITY (5) ------ (None) > --- WEAPON (3) ------- Heavy Flail > --- INVENTORY (5) ---- Small Storage Unit Particle Charger Trap Extractor (3/4 Proton Bomb) Shock Bomb Launcher Rocket Launcher Peak State ------------ > --- POWER ------------ Improved Ion Engine > --- PROPULSION ------- Carbon-fiber Leg Carbon-fiber Leg > --- UTILITY ---------- Cooling System Small Storage Unit Sensor Array Utility Shielding > --- WEAPON ----------- Improved Medium Laser Beamcaster Particle Cannon > --- INVENTORY -------- Improved Ion Engine Improved Ion Engine Compact Wheel Compact Wheel Recoil Stabilizer Trap Extractor Rocket Launcher [Rating: 24] Favorites ----------- Power Improved Ion Engine Engine Improved Ion Engine Propulsion Aluminum Leg Treads Light Treads Leg Aluminum Leg Hover Unit Improved Hover Unit Utility Small Storage Unit Device Cooling System Storage Small Storage Unit Processor Visual Processing Unit Hackware Hacking Suite Protection Utility Shielding Weapon Improved Medium Laser Energy Gun Improved Medium Laser Energy Cannon Particle Cannon Ballistic Gun Assault Rifle Launcher Rocket Launcher Impact Weapon Heavy Flail Special Melee Weapon Datajack Build | -11 -10 -10 -9 -8 ------- Run | Yrd Mat Min Mat Mat Slots Evolved 4 | . . . 2 2 Power . | . . . . . Propulsion . | . . . . . Utility 3 | . . . 1 2 Weapon 1 | . . . 1 . Parts Attached 38 | . 6 . 14 18 Power 3 | . 1 . . 2 Engine 3 | . 1 . . 2 Core . | . . . . . Reactor . | . . . . . Propulsion 9 | . . . 3 6 Treads 4 | . . . 2 2 Leg 4 | . . . 1 3 Wheel . | . . . . . Hover 1 | . . . . 1 Flight . | . . . . . Utility 8 | . 1 . 4 3 Device 4 | . . . 2 2 Storage . | . . . . . Processor 2 | . 1 . 1 . Hackware 1 | . . . . 1 Protection 1 | . . . 1 . Artifact . | . . . . . Weapon 18 | . 4 . 7 7 Energy Gun 7 | . 2 . 3 2 Energy Cannon 2 | . . . 2 . Ballistic Gun 2 | . 2 . . . Ballistic Cannon . | . . . . . Launcher 4 | . . . 2 2 Special Weapon . | . . . . . Impact Weapon 1 | . . . . 1 Slashing Weapon . | . . . . . Piercing Weapon . | . . . . . Special Melee Weapon 2 | . . . . 2 Unidentified Prototypes 1 | . 1 . . . Parts Lost 18 | . . . 3 15 Power 3 | . . . . 3 Propulsion 5 | . . . 1 4 Utility 5 | . . . 1 4 Weapon 5 | . . . 1 4 Highest Loss Streak 9 | . . . 3 9 To Critical Strikes . | . . . . . Average Slot Usage (%) 91 | . 95 100 94 63 Engine 11 | . 14 14 11 6 Treads 3 | . . . 7 5 Leg 19 | . 28 28 14 7 Device 3 | . . . 5 11 Storage 11 | . 14 14 11 6 Processor 10 | . 10 14 12 . Protection 2 | . . . 3 6 Energy Gun 22 | . 18 28 23 10 Energy Cannon 1 | . . . 1 5 Launcher 1 | . . . 3 . Naked Turns 25 | . . . . 25 Heaviest Build 28 | 12 18 18 27 28 Greatest Support 40 | 20 20 20 40 40 Greatest Overweight (x) 1 | . . . 1 1 Average Overweight (x) . | . . . . . Largest Inventory Capacity 8 | . 8 8 8 8 Average Capacity 7 | . 8 8 8 7 Most Carried 8 | . 8 8 8 8 Average Carried 7 | . 7 8 7 6 Final Capacity 8 | 8 8 8 8 5 Final Carried 8 | 6 8 8 8 5 Class Distribution -------------------- 66% | Mutant 17% | Skirmisher 8% | Tank 4% | Gunner 3% | Scavenger-Gunner Dominant Class ---------------- Mutant | -10/Materials Mutant | -10/Mines Mutant | -9/Materials Mutant | -8/Materials Resources | -11 -10 -10 -9 -8 ----------- Run | Yrd Mat Min Mat Mat Matter Collected 505 | 200 92 . 150 63 Remotely . | . . . . . Salvage Created 1481 | . 208 82 895 296 Parts 73 | . 15 3 42 13 Haulers Intercepted 4 | . 1 . 3 . Recyclers Shooed . | . . . . . Parts Field Recycled . | . . . . . Retrieved Matter . | . . . . . Parts Self-Destructed . | . . . . . Prevented . | . . . . . Kills | -11 -10 -10 -9 -8 ------- Run | Yrd Mat Min Mat Mat Combat Hostiles Destroyed 20 | . 3 . 13 4 Guns 11 | . 3 . 6 2 AOE 7 | . . . 6 1 Classes Destroyed 8 | . 3 2 2 1 Builder 1 | . . 1 . . Hauler 4 | . 1 . 3 . Recycler 5 | . . 1 3 1 Operator 1 | . . . . 1 Watcher 4 | . 2 . 2 . Swarmer 6 | . . . 6 . Grunt 10 | . 3 . 4 3 Sentry 4 | . . . 3 1 Thug 1 | . . . 1 . Best Kill Streak 5 | . 2 1 5 3 Combat Bots Only 4 | . 2 . 4 2 Max Kills in Single Turn 4 | . 1 1 4 1 Gunslinging . | . . . . . Exploded 4 | . . . 4 1 Melee . | . . . . . Uniques/NPCs Destroyed . | . . . . . Combat | -11 -10 -10 -9 -8 -------- Run | Yrd Mat Min Mat Mat Hostile Shots Fired 202 | . 11 . 60 131 Missed 51 | . 1 . 19 31 Damage Taken 2254 | . 138 . 449 1667 Core 683 | . 44 . 76 563 Absorbed by Shields . | . . . . . Redirected to Shielding 51 | . . . . 51 Regen/Repaired (Parts) 62 | . . . 62 . Core Remaining (%) 87 | 100 . 82 81 . Volleys Fired 81 | . 15 7 37 22 Largest 3 | . 2 2 3 3 Hottest 199 | . 112 112 191 199 Shots Fired 182 | . 30 14 90 48 Gun 157 | . 30 14 86 27 Cannon 18 | . . . 3 15 Launcher 7 | . . . 1 6 Special . | . . . . . Kinetic 13 | . 13 . . . Thermal 144 | . 14 14 74 42 Explosive 3 | . . . 1 2 Electromagnetic 22 | . 3 . 15 4 Robot Hit Streak 16 | . 5 4 16 14 Robot Miss Streak 5 | . 3 3 5 3 Penetration Max . | . . . . . Secondary Targets 1 | . . . 1 . Max Gunslinging Chain 1 | . . . 1 . Shots Hit Robots 107 | . 13 4 60 30 Core Hits 47 | . 7 4 25 11 Critical Kills . | . . . . . Critical Parts Destroyed . | . . . . . Critical Strikes 6 | . 1 2 2 1 Burn 6 | . 1 2 2 1 Melee Attacks 3 | . . . . 3 Impact 2 | . . . . 2 Slashing . | . . . . . Piercing . | . . . . . Sneak Attacks 1 | . . . . 1 Combat Hostiles . | . . . . . Follow-up Attacks . | . . . . . Damage Inflicted 2549 | . 221 93 1421 814 Guns 1679 | . 212 66 1013 388 Cannons 225 | . . . 20 205 Explosions 583 | . . . 373 210 Melee . | . . . . . Ramming 62 | . 9 27 15 11 Kinetic 73 | . 73 . . . Thermal 1867 | . 119 66 1089 593 Explosive 319 | . . . 195 124 Electromagnetic 228 | . 20 . 122 86 Impact . | . . . . . Slashing . | . . . . . Piercing . | . . . . . Highest Corruption . | . . . . . Average Corruption . | . . . . . Corruption Purged . | . . . . . Corruption Blocked . | . . . . . Overload Shots . | . . . . . Overflow Damage 32 | . . . 21 11 Projectiles . | . . . . . Explosions 32 | . . . 21 11 Melee . | . . . . . Knockbacks . | . . . . . Impact . | . . . . . Kinetic . | . . . . . Secondary . | . . . . . Self-Inflicted Damage 76 | . . . . 76 Shots 4 | . . . . 4 Rammed 4 | . . . 1 3 Targets Rammed 14 | . 2 6 2 4 Kicked 9 | . 2 6 . 1 Crushed 1 | . . . 1 . Highest Temperature 463 | . 321 165 463 163 Average Temperature 106 | . 126 75 124 61 Received Heat Transfer 1035 | . 75 . 168 792 Effects 6 | . 1 . 5 . Shutdowns 1 | . . . 1 . Energy Bleed 1 | . . . 1 . Interference 1 | . 1 . . . Matter Decay 1 | . . . 1 . Damage (minor) 1 | . . . 1 . Damage (major) 1 | . . . 1 . Siege Activations . | . . . . . Robots Corrupted . | . . . . . Combat Hostiles . | . . . . . Parts Fried . | . . . . . Impact Corruptions . | . . . . . Robots Melted 2 | . . . 1 1 Combat Hostiles 2 | . . . 1 1 Parts Melted 8 | . 1 1 5 1 Heat Transferred 4135 | . 333 296 2285 1221 Parts Sabotaged . | . . . . . Parts Stolen . | . . . . . Parts Stripped . | . . . . . Power Chain Reactions 3 | . . . 2 1 Alert | -11 -10 -10 -9 -8 ------- Run | Yrd Mat Min Mat Mat Peak Influence 498 | . 161 92 498 245 Initial 146 | . . 62 . 146 Average 176 | . 66 39 337 176 Maximum Alert Level 2 | . . . 2 1 Low Security (%) 63 | . 100 100 13 78 Level 1 25 | . . . 56 21 Level 2 11 | . . . 29 . Level 3 . | . . . . . Level 4 . | . . . . . Level 5 . | . . . . . High Security . | . . . . . Max Security . | . . . . . Squads Dispatched 8 | . 1 . 3 4 Investigation 5 | . 1 . 3 1 Extermination . | . . . . . Reinforcement 1 | . . . . 1 Assault . | . . . . . Garrison 2 | . . . . 2 Intercept . | . . . . . Searches Triggered . | . . . . . Construction Impeded . | . . . . . Haulers Reinforced . | . . . . . Active Scanning Responses . | . . . . . Cargo Convoy Interrupts . | . . . . . Stealth | -11 -10 -10 -9 -8 --------- Run | Yrd Mat Min Mat Mat Distress Signals 1 | . 1 . . . Communications Jammed . | . . . . . Distress Signals . | . . . . . Times Spotted 42 | . 7 . 24 11 Peak Tracking Total 5 | . 3 . 4 5 Tactical Retreats 1 | . . . . 1 Traps | -11 -10 -10 -9 -8 ------- Run | Yrd Mat Min Mat Mat Traps Triggered 1 | . 1 . . . Indirectly . | . . . . . Trap Hack Attempts 5 | . . . . 5 Triggered . | . . . . . Disarmed . | . . . . . Reprogrammed 3 | . . . . 3 Reused . | . . . . . Traps Extracted 3 | . . . . 3 Installed . | . . . . . Triggered . | . . . . . Most Traps Carried 3 | . . . . 3 Machines | -11 -10 -10 -9 -8 ---------- Run | Yrd Mat Min Mat Mat Machines Disabled 4 | . 1 1 1 1 Max in Single Turn 1 | . 1 1 . 1 Machines Repaired . | . . . . . Machines Dismantled . | . . . . . Machines Sabotaged . | . . . . . Overloaded Fab Kills . | . . . . . Hacking | -11 -10 -10 -9 -8 --------- Run | Yrd Mat Min Mat Mat Machines Accessed 8 | . . . 6 2 Terminals 5 | . . . 3 2 Fabricators . | . . . . . Repair Stations 1 | . . . 1 . Recycling Units 1 | . . . 1 . Scanalyzers 1 | . . . 1 . Garrison Access . | . . . . . Total Hacks 29 | . . . 24 5 Successful 12 | . . . 11 1 Failed 17 | . . . 13 4 Catastrophic 3 | . . . 2 1 Database Lockouts . | . . . . . Manual 12 | . . . 10 2 Terminals 19 | . . . 14 5 Fabricators . | . . . . . Repair Stations 2 | . . . 2 . Recycling Units 4 | . . . 4 . Scanalyzers 4 | . . . 4 . Garrison Access . | . . . . . Terminal Hacks 5 | . . . 4 1 Branch Access Points 1 | . . . 1 . Maintenance Status 1 | . . . 1 . Surveillance Status 1 | . . . 1 . Transport Status 1 | . . . 1 . Zone Layout 1 | . . . . 1 Fabricator Hacks . | . . . . . Repair Station Hacks 2 | . . . 2 . Scan Component 1 | . . . 1 . Repair 1 | . . . 1 . Recycling Unit Hacks 1 | . . . 1 . Retrieve Components 1 | . . . 1 . Scanalyzer 2 | . . . 2 . Insert Component 1 | . . . 1 . Analyze 1 | . . . 1 . Garrison Access Hacks . | . . . . . Unauthorized Hacks 2 | . . . 2 . Terminals 1 | . . . 1 . Botnet 1 | . . . 1 . Fabricators . | . . . . . Repair Stations . | . . . . . Recycling Units . | . . . . . Scanalyzers 1 | . . . 1 . Extract 1 | . . . 1 . Garrison Access . | . . . . . Data Cores Recovered 1 | . . . . 1 Used 1 | . . . . 1 Hacking Detections 8 | . . . 6 2 Full Trace Events 5 | . . . 3 2 Feedback Events . | . . . . . Feedback Blocked . | . . . . . Robot Schematics Acquired . | . . . . . Robots Built . | . . . . . Authchips . | . . . . . Time . | . . . . . Total Robot Build Rating . | . . . . . Part Schematics Acquired 4 | . . . 4 . Parts Built . | . . . . . Authchips . | . . . . . Time . | . . . . . Total Part Build Rating . | . . . . . Parts Repaired 1 | . . . 1 . Time 51 | . . . 51 . Parts Recycled . | . . . . . Recycled Matter . | . . . . . Retrieved Matter . | . . . . . Retrieved Components 9 | . . . 9 . Parts Scanalyzed 1 | . . . 1 . Part Schematics Acquired 1 | . . . 1 . Parts Damaged . | . . . . . Bothacking | -11 -10 -10 -9 -8 ------------ Run | Yrd Mat Min Mat Mat Used RIF Installer . | . . . . . Robots Hacked . | . . . . . Non-combat . | . . . . . Combat . | . . . . . Robot Hacks Applied . | . . . . . Relay Couplers Released . | . . . . . Fabnet Peak Effective % . | . . . . . Robots Rewired . | . . . . . Allies Hacked . | . . . . . Hacks Repelled . | . . . . . Allies | -11 -10 -10 -9 -8 -------- Run | Yrd Mat Min Mat Mat Total Allies 2 | . . 2 . . Largest Group 2 | . . 2 2 . Highest-Rated Group 42 | . . 42 42 . Highest-Rated Ally 31 | . . 31 31 . Total Orders . | . . . . . Ally Attacks 27 | . . . 27 . Total Damage 420 | . . . 420 . Kills 9 | . . . 9 . Allies Corrupted . | . . . . . Allies Melted . | . . . . . Intel | -11 -10 -10 -9 -8 ------- Run | Yrd Mat Min Mat Mat Robot Analysis Total . | . . . . . Derelict Logs Recovered 1 | . . 1 . . Drone Launches . | . . . . . Drone Recoveries . | . . . . . Exploration | -11 -10 -10 -9 -8 ------------- Run | Yrd Mat Min Mat Mat Turns Passed 2192 | . 199 820 836 337 Spaces Moved 1396 | 1 115 639 429 212 Core 81 | . . . . 81 Treads 171 | . . . 136 35 Legs 1136 | 1 115 639 293 88 Wheels . | . . . . . Hover 8 | . . . . 8 Flight . | . . . . . Fastest Speed 50 | 120 120 120 120 50 Average Speed 126 | 120 120 120 152 98 Slowest Speed 190 | 120 120 120 190 190 Overloaded Moves . | . . . . . Propulsion Burnouts . | . . . . . Robots Hopped . | . . . . . Cave-ins Triggered . | . . . . . Exploration Rate (%) 39 | 2 29 96 54 17 Regions Visited 4 Branch Regions 1 Pre-discovered Areas 1 | . . 1 . . Known Exits Taken 1 | . . . 1 . Unknown Exits Taken 3 | 1 1 1 . . Scrap Searched 1 | . . 1 . . Spaces Dug . | . . . . . Terrain Destroyed 46 | . . 5 13 28 Melee . | . . . . . Projectile . | . . . . . AOE 46 | . . 5 13 28 Terrain Rammed . | . . . . . Walls Destroyed . | . . . . . Machines Disabled . | . . . . . Actions | -11 -10 -10 -9 -8 --------- Run | Yrd Mat Min Mat Mat Total 1650 | . 148 677 531 294 Wait 87 | . . 26 43 18 Move 1392 | . 114 638 428 212 Hop . | . . . . . Pick Up 10 | . 3 . 2 5 Fast Attach 17 | . 5 . 7 5 Attach 9 | . . . 2 7 Detach 6 | . 2 . 2 2 Swap 12 | . 1 . 5 6 Drop 14 | . 6 . 3 5 Fire 81 | . 15 7 37 22 Melee 3 | . . . . 3 Ram 1 | . . . . 1 Kick 9 | . 2 6 . 1 Crush 4 | . . . 2 2 Escape Stasis . | . . . . . Rewire . | . . . . . Trap 5 | . . . . 5 Miscellaneous . | . . . . . Route ------- -11/Scrapyard -10/Materials -10/Mines (discovered 2 exits: *Mat x2) -9/Materials (discovered 4 exits: *Mat x2 / *Min x2) -8/Materials History --------- Turn | Location | Event 1 | -11/Scrapyard | Discovered new exit (range 0) 1 | -11/Scrapyard | Entered Materials 155 | -10/Materials | Discovered new exit (range 15) 200 | -10/Materials | Entered Mines 234 | -10/Mines | Discovered new exit (range 13) 305 | -10/Mines | Build established: Mutant 392 | -10/Mines | Learned Materials interactive machine intel 403 | -10/Mines | Learned location of Storage (-8) 459 | -10/Mines | Discovered new exit (range 16) 1020 | -10/Mines | Entered Materials 1020 | -9/Materials | Accompanied by 2 allies 1020 | -9/Materials | Evolved 2 slots: Utility x1, Weapon x1 1021 | -9/Materials | Loaded intel: 18 interactive machine locations 1025 | -9/Materials | Led the pair of lost Derelicts to an unsafe place 1263 | -9/Materials | Discovered new exit (range 11) 1280 | -9/Materials | Identified exit to Mines 1456 | -9/Materials | Discovered new exit (range 14) 1483 | -9/Materials | Identified exit to Materials 1612 | -9/Materials | Lost 3 parts (1n1u1w) 1730 | -9/Materials | Discovered exit to Materials (range 16) 1818 | -9/Materials | Repaired Imp. Medium Laser 1856 | -9/Materials | Entered another Materials area 1856 | -8/Materials | Evolved 2 slots: Utility x2 2003 | -8/Materials | Garrison activated, responded to threat 2102 | -8/Materials | Core integrity fell below 50% 2129 | -8/Materials | Lost 9 parts (1p2n3u3w) 2156 | -8/Materials | Core integrity fell below 20% 2183 | -8/Materials | Lost 3 parts (1p1n1w) 2193 | -8/Materials | Destroyed by Y-45 Defender with Beam Rifle Last Messages --------------- 02130_ Integration Channel disabled. 02141_ Chain reaction triggered in Imp. Ion Engine. 02141_ Carbon-fiber Leg destroyed. 02141_ Destroyed Carbon-fiber Leg. 02143_ G-47 Trooper misfires. 02151_ G-47 Trooper destroyed. 02152_ Critical hit (Burn: +37). 02152_ Imp. Medium Laser destroyed. 02155_ Acquired 47 matter. 02167_ O-16 Technician: "IFF HANDSHAKE FAILED. SECURING TERMINAL." 02168_ Connecting with Terminal... 02168_ ALERT: Suspicious activity at Terminal M012. Dispatching Investigation squad. 02172_ ALERT: Hostiles spotted, dispatching reinforcements to Terminal M003. 02172_ Slammed into Y-45 Defender. 02177_ Acquired Hacking Suite. 02180_ Acquired Imp. Hover Unit. 02183_ Acquired Hvy. Flail. 02185_ Hacking Suite destroyed. Map ----- +----------------------------------------------------+ | ??????????????????? #??????????? | | ???###????????""""" #??????????? | | ??## ##????????"""" #??????????? | | ###"""##???????"""" #??????????? | | # "#????????""" #??????????? | | # "#???????? #??????????? | | # !##????????? !???????????? | | # %=#?????????? ???????????? | | # ==!######???###+##??????????? | | # [ # ##### ############ | | # [!/ | | # # ! % | | # # ##### ############ | | # ######???## ##??????????? | | # #?????????# #???????????? | | # #?????????# #???????????? | | #########???????# #??????##???? | | # !!/ #???????# #???? #???? | | # !// #???????# #?? #???? | | # ! #???????# # """ #???? | | # #???????+ + """ !#???? | | # ] #???????# # """ #???? | | # #??????## ##?#####????? | | # ######## ##### #?? | | # Y# T #?? | | # ""T""@# "" #?? | | # """"" Y ##### ##### #?? | | # # #???##+###???????##?? | | #### #### #???????????????????? | | ???###?? #???????????????????? | | ??????? #???????????????????? | | ?????? ##???????????????????? | | ????? ?????????????????????? | | ????! !?????????????????????? | | ????#!!!!#?????????????????????? | | ?????####??????????????????????? | | ???????????????????????????????? | | | | | | | | | | | | | | | | | | | | | | | | | | | +----------------------------------------------------+ Best States ------------- Heat Dissipation 53 Energy Generation 12 Energy Capacity 265 Matter Stores 300 Matter Capacity 300 Sight Range 18 Robot Scan Range 14 Terrain Scan Density 10 Utility Shielding 33 Evasion (%) 55 Recoil Reduction 2 Offensive Hacking 10 Item Schematics ----------------- Sensor Array | -9/Materials | Scanalyzed Targeting Computer | -9/Materials | Extracted Med. Armor Plating | -9/Materials | Extracted Flight Unit | -9/Materials | Extracted Robot Schematics ------------------ None Fabricated ------------ Nothing Alien Tech Used ----------------- None Achievements -------------- None Challenges ------------ None Game ------ Seed BattleCarbideField Manual? 0 Play Time 00:16:42 Cumulative 755.7 hours Start 2024.06.08 @ 18:17:22 End 2024.06.08 @ 18:48:07 Sessions 1 Manual Loads 0 Difficulty Rogue Special Mode None Game No. 839 Rogue 563 Adventurer 123 Explorer 153 Win Type - Total 28 Types 22/0/4/1/0/0/0/1/0 Lore% 84 Gallery% 92 Achievement% 76 Wizard Run 0 Options --------- Layout 0 ASCII 0 Keyboard 1 Movement Numpad Keybinds 0 Fullscreen 2 Font 18/Terminus Map View 76x50 Zoom Use 0% Tactical HUD 1 Map Filters NONE Filters SHIFT_HUE(360) Steam 1 RUN: dfe344eb-0130-4e02-9851-7b5672ffab68